[Event "Rapid Shavuot-A 2023"]
[Site "Ramat Gan"]
[Date "2023.05.25"]
[Round "6.4"]
[White "Dvoirys, Semen I."]
[Black "Zanan, Evgeny"]
[Result "0-1"]
[ECO "C02"]
[WhiteElo "2470"]
[BlackElo "2485"]
[Annotator "TA"]
[PlyCount "144"]
[EventDate "2023.05.19"]
[EventType "swiss"]
[EventCountry "ISR"]
[SourceTitle "playchess.com"]
[Source "ChessBase"]
[SourceQuality "1"]
[TimeControl "900+5"]

{[%evp 17,144,0,-2,-14,43,-12,28,-19,-24,-48,0,0,7,-30,-18,-60,-64,-117,-110,-78,0,3,18,14,76,0,6,0,0,-40,-39,-33,-7,-173,-185,-179,-179,-267,-282,-297,-277,-262,-256,-269,-252,-287,-270,-262,-258,-270,-274,-340,-315,-581,-534,-582,-572,-482,-179,-183,-177,-244,-164,-163,-134,-133,-137,-362,-305,-295,-262,-312,-294,-264,-249,-272,-249,-282,-287,-281,-70,-68,-8,-8,0,0,0,-8,-8,-8,-8,-8,-8,-8,-8,-8,-8,-24,-24,-18,-8,-1009,-19,-38,-8,-108,-108,-109,-109,-116,-116,-116,-117,-151,-132,-1236,-162,-150,-158,-145,-25,-40,-8,-235,-207,-207,-207,-207,-207]} 1. e4 {[%emt 0:00:03]} e6 {[%emt 0:00:20]} 2. d4 {[%emt 0:00:03]} d5 {[%emt 0:00:01]} 3. e5 {[%emt 0:00:02]} c5 {[%emt 0:00:11]} 4. c3 {[%emt 0:00:01]} Nc6 {[%emt 0:00:02]} 5. Nf3 {[%emt 0:00:01]} Qb6 {[%emt 0:00:01]} 6. a3 {[%emt 0:00:02]} c4 {[%emt 0:00:01]} 7. Nbd2 {[%emt 0:00:04]} Na5 {[%emt 0:00:02]} 8. Be2 {[%emt 0:00:03]} Bd7 {[%emt 0:00:02]} 9. O-O {[%emt 0:00:06]} h6 {[%emt 0:00:15]} 10. a4 {[%emt 0:00:15] C02: French: Advance Variation.} O-O-O {[%emt 0:00:14]} (10... Ne7 $11) 11. Qe1 {[%emt 0:02:01]} (11. Rb1 $14) 11... Kb8 {[%emt 0:00:10]} 12. Bd1 {[%emt 0:00:02]} (12. b4 {deserves consideration.} cxb3 13. Ba3) 12... Ne7 $11 {[%emt 0:00:03]} 13. Bc2 {[%emt 0:00:04]} Nc8 {[%emt 0:00:05]} (13... Nec6 $15) 14. Qd1 {[%emt 0:00:20]} Qc7 {[%emt 0:00:06]} 15. Ne1 {[%emt 0:00:34] [#]} Be7 $146 {[%emt 0:00:10]} ({Predecessor:} 15... g6 16. g3 Be7 17. Ng2 Rdg8 18. h4 Qd8 19. Nf3 a6 20. Ne3 Ka7 21. Ng4 h5 {0-1 Aravindh,C (2593)-Erigaisi,A (2324) Commonwealth-ch 2017 (8)}) 16. f4 {[%emt 0:00:01]} f5 {[%emt 0:00:17]} 17. b3 {[%emt 0:01:22]} (17. Rf2 $15) 17... cxb3 $17 {[%emt 0:00:12] Black is more active.} 18. Nxb3 {[%emt 0:00:01]} Nc4 {[%emt 0:00:41] Repels Qd2} (18... Qxc3 $2 19. Bd2 Qc7 20. Bxa5 $18) ({Black should play} 18... Nxb3 $17 19. Bxb3 Qxc3) 19. Nd3 $11 {[%emt 0:00:08]} a5 {[%emt 0:00:46]} 20. Nbc5 {[%emt 0:00:12]} Ka7 {[%emt 0:00:03]} (20... g5 $11) 21. Bb3 {[%emt 0:00:35]} (21. Rb1 $16 Bxc5 22. Nxc5) 21... N8b6 {[%emt 0:01:09]} 22. Ra2 {[%emt 0:00:40]} g5 {[%emt 0:00:20]} 23. Qh5 {[%emt 0:01:46]} Be8 {[%emt 0:00:36]} 24. Qe2 {[%emt 0:00:23]} (24. Nxe6 $2 Qc8 25. Qe2 Qxe6 $19) 24... Qc8 {[%emt 0:00:09]} 25. g4 $2 {[%emt 0:00:09]} (25. Ra1 $11) 25... Bg6 $19 {[%emt 0:00:42]} 26. Bd1 {[%emt 0:01:37]} fxg4 {[%emt 0:00:14]} 27. fxg5 {[%emt 0:00:20]} (27. Qe1 $142) 27... hxg5 {[%emt 0:00:02]} 28. Qxg4 {[%emt 0:00:05]} Bf5 {[%emt 0:00:28]} 29. Qe2 {[%emt 0:00:35]} Rh4 {[%emt 0:00:21]} 30. Qe1 {[%emt 0:00:19]} Rdh8 {[%emt 0:00:16]} 31. Rf3 {[%emt 0:00:18]} Nd7 {[%emt 0:00:37]} 32. Nxd7 {[%emt 0:00:32]} Qxd7 {[%emt 0:00:05]} 33. Rg3 {[%emt 0:00:01]} Qe8 {[%emt 0:00:32]} 34. Rf2 {[%emt 0:00:59]} Qg6 {[%emt 0:01:24]} 35. Nb2 {[%emt 0:00:10]} (35. Qe2 Rh3 36. Nb2) 35... Qh7 {[%emt 0:02:06][%cal Rh4h2]} 36. Qe2 {[%emt 0:00:02]} Re4 {[%emt 0:01:02]} 37. Qf1 {[%emt 0:00:25]} Bh3 $2 {[%emt 0:00:15]} (37... Nxe5 38. dxe5 Bc5) 38. Rxh3 {[%emt 0:00:25]} Qxh3 {[%emt 0:00:02]} 39. Nxc4 {[%emt 0:00:02]} (39. Bf3 $142 Qxf1+ 40. Kxf1 Nxb2 41. Bxe4 Nxa4 42. Bd3) 39... dxc4 {[%emt 0:00:49]} 40. Bf3 {[%emt 0:00:22] Strongly threatening Qxh3.} Qxf1+ {[%emt 0:00:39]} 41. Rxf1 {[%emt 0:00:09]} Reh4 {[%emt 0:00:05]} 42. Rf2 $2 {[%emt 0:00:29]} (42. Be3 $17 {is a better defense.}) 42... g4 {[%emt 0:00:38]} 43. Bg2 {[%emt 0:00:20]} Rxh2 {[%emt 0:00:42][%cal Ob7b5]} 44. Rb2 {[%emt 0:00:14]} b6 {[%emt 0:00:11]} 45. Be3 {[%emt 0:00:03]} R8h3 {[%emt 0:00:34]} 46. Bf4 {[%emt 0:01:01] [#]} Rxg2+ {[%emt 0:00:45]} 47. Rxg2 {[%emt 0:00:01]} Rxc3 {[%emt 0:00:02]} 48. Rxg4 {[%emt 0:00:01][%mdl 4096] Endgame KRB-KRB} Ka6 $2 {[%emt 0:00:00]} ({Better is} 48... Bb4 $19 {Hoping for ...Kb7.} 49. Kf2 Kb7) 49. Rg6 $15 {[%emt 0:00:02]} Rd3 {[%emt 0:00:08]} (49... Rf3 $15 50. Bh6 Bb4 51. Rxe6 Kb7) 50. Rxe6 $11 {[%emt 0:00:02]} Rxd4 {[%emt 0:00:02]} 51. Be3 {[%emt 0:00:07]} Rd1+ {[%emt 0:00:24]} 52. Kg2 {[%emt 0:00:13]} Bd8 {[%emt 0:00:02]} 53. Rc6 {[%emt 0:00:01]} Rd5 {[%emt 0:00:15]} 54. e6 {[%emt 0:00:11]} Kb7 {[%emt 0:00:07]} 55. e7 {[%emt 0:00:37][%mdl 64] Deflection} ({Much worse is} 55. Rxc4 Re5 56. Kf3 Rxe6 $17) 55... Bxe7 {[%emt 0:00:01]} (55... Kxc6 $2 56. e8=Q+ (56. e8=R $2 {loses.} c3 $19) 56... Kb7 57. Qe4 $18) 56. Rxb6+ {[%emt 0:00:02]} Kc7 {[%emt 0:00:00]} 57. Ra6 {[%emt 0:00:02]} Bb4 {[%emt 0:00:05]} 58. Kf3 {[%emt 0:00:08]} c3 {[%emt 0:00:05]} 59. Rg6 $2 {[%emt 0:00:16][%mdl 8192]} (59. Ke4 $11 Rd1 60. Ra7+ Kb8 61. Ra6) 59... Rd1 $2 {[%emt 0:00:09]} (59... Rd3 $19 60. Rg7+ Kc6) 60. Rg4 {[%emt 0:00:03]} Kc6 {[%emt 0:00:09] And now ...Kd5 would win.} (60... Ra1 $5 {[%cal Ra1a4]}) 61. Rc4+ {[%emt 0:00:06]} (61. Ke2 $11 {remains equal.} Rh1 62. Kd3) 61... Kd5 $17 {[%emt 0:00:02]} 62. Rc8 {[%emt 0:00:01]} Ra1 {[%emt 0:00:02]} 63. Ke2 {[%emt 0:00:11]} Rxa4 {[%emt 0:00:03]} 64. Kd3 {[%emt 0:00:02]} Ra1 {[%emt 0:00:06]} 65. Kc2 {[%emt 0:00:15]} Rh1 {[%emt 0:00:08] aiming for ...Rh2+.} 66. Kb3 $2 {[%emt 0:00:14][%mdl 8192]} (66. Rd8+ $17 Ke6 67. Bc1) 66... Rb1+ $2 {[%emt 0:00:10]} (66... Ke4 $1 {[%cal Re4e3]} 67. Bg5 Rb1+ 68. Ka4 Kd3) 67. Kc2 $19 {[%emt 0:00:01]} Rb2+ {[%emt 0:00:01]} 68. Kd3 {[%emt 0:00:01]} a4 {[%emt 0:00:06]} (68... Rh2 $17 {...Rh3 would be deadly.} 69. Bc1 Rg2) 69. Bc1 $11 {[%emt 0:00:39]} Rh2 {[%emt 0:00:09]} (69... Ra2 $5 {[%cal Ra2a1]}) 70. Ra8 $2 {[%emt 0:00:02]} (70. Rd8+ $1 $11 {and White is okay.} Ke5 71. Ra8) 70... Rh3+ {[%emt 0:00:04] Black is clearly better.} 71. Kc2 {[%emt 0:00:01] [#]} Kc4 $1 {[%emt 0:00:01] ( -> ...Rh2+)} 72. Rc8+ {[%emt 0:00:10] [#]} Bc5 $1 {[%emt 0:00:03] Weighted Error Value: White=0.42/Black=0.41} 0-1

[Event "Rapid Shavuot-A 2023"]
[Site "Ramat Gan"]
[Date "2023.05.25"]
[Round "6.5"]
[White "Levitan, Tal"]
[Black "Yaniv, Ori"]
[Result "1-0"]
[ECO "B22"]
[WhiteElo "2328"]
[BlackElo "2156"]
[Annotator "TA"]
[PlyCount "117"]
[EventDate "2023.05.19"]
[EventType "swiss"]
[EventCountry "ISR"]
[SourceTitle "playchess.com"]
[Source "ChessBase"]
[SourceQuality "1"]
[TimeControl "900+5"]

{[%evp 23,117,0,21,15,19,25,41,31,48,42,37,0,0,0,0,0,143,156,148,157,160,97,119,85,89,82,76,84,57,70,84,0,68,11,120,121,121,121,121,121,121,121,115,91,99,0,0,-146,-147,-154,-181,-227,-229,-275,-194,-194,-194,-152,-117,-99,0,0,0,0,0,0,39,39,49,52,149,140,133,134,2335,635,628,628,619,604,595,584,29986,29987,29987,29984,29984,29985,29982,29983,29986,29985,29990,29991,29991,29992]} 1. e4 {[%emt 0:00:02]} c5 {[%emt 0:00:03]} 2. c3 {[%emt 0:00:02]} Nf6 {[%emt 0:00:14]} 3. e5 {[%emt 0:00:01]} Nd5 {[%emt 0:00:02]} 4. d4 {[%emt 0:00:02]} cxd4 {[%emt 0:00:06]} 5. cxd4 {[%emt 0:00:01]} Nc6 {[%emt 0:00:09]} 6. Nf3 {[%emt 0:00:02]} d6 {[%emt 0:00:02]} 7. Bc4 {[%emt 0:00:02]} Nb6 {[%emt 0:00:02]} 8. Bb5 {[%emt 0:00:01]} dxe5 {[%emt 0:00:18]} 9. Nxe5 {[%emt 0:00:02]} Bd7 {[%emt 0:00:04]} 10. Nxd7 {[%emt 0:00:02]} Qxd7 {[%emt 0:00:03]} 11. Nc3 {[%emt 0:00:02]} e6 {[%emt 0:00:05]} 12. O-O {[%emt 0:00:04]} Be7 {[%emt 0:00:57]} 13. Qg4 {[%emt 0:00:05] B22: Sicilian: 2 c3.} Bf6 {[%emt 0:00:15]} 14. Rd1 {[%emt 0:00:45][%cal Od4d5]} h5 {[%emt 0:01:09]} 15. Qe4 {[%emt 0:00:09] White is slightly better.} a6 {[%emt 0:00:33]} 16. Bxc6 {[%emt 0:00:35]} bxc6 {[%emt 0:00:36]} 17. Bf4 {[%emt 0:00:17]} Nd5 {[%emt 0:00:43] [#]} 18. Na4 $146 {[%emt 0:00:55]} ({Predecessor:} 18. Be5 Qe7 19. Na4 O-O 20. Rac1 Rfc8 21. Rc5 Bxe5 22. Qxe5 g6 23. a3 Qb7 24. Rd3 {0-1 Baier,U (1707)-Khanukov,B (2246) Leverkusen Bayer op 10th 2012 (1)}) 18... Nxf4 {[%emt 0:01:36]} 19. Qxf4 {[%emt 0:00:38]} (19. Nb6 $2 Qb7 20. Nxa8 Nd5 $19) 19... O-O {[%emt 0:00:11]} (19... Rd8 $11) 20. Nb6 $1 $36 {[%emt 0:00:11][%csl LRa8,LRd7][%mdl 2048] White is on the roll.} Qb7 {[%emt 0:00:18]} 21. Nxa8 {[%emt 0:00:02]} Rxa8 {[%emt 0:00:01]} 22. Rab1 {[%emt 0:02:35]} (22. b3 $142) 22... Rd8 {[%emt 0:00:05]} 23. Qf3 {[%emt 0:00:36]} Rd5 {[%emt 0:00:04]} 24. b4 {[%emt 0:00:27]} Bxd4 {[%emt 0:00:28]} 25. Rd2 {[%emt 0:01:28]} g6 {[%emt 0:02:25]} 26. g3 {[%emt 0:00:50]} c5 {[%emt 0:01:40]} 27. Qd1 {[%emt 0:01:40]} (27. Qe4 $16 {aiming for bxc5.} Qc6 28. Kg2) 27... Qd7 {[%emt 0:00:29]} (27... e5 $11) 28. Qc2 {[%emt 0:00:41]} (28. Qf1 $1 $14) 28... cxb4 {[%emt 0:00:51]} (28... Qc6 $1 $11 {remains equal.}) 29. Rxb4 {[%emt 0:00:40]} e5 {[%emt 0:00:10]} 30. Rb8+ {[%emt 0:00:19]} Kg7 {[%emt 0:00:01]} 31. Qc8 {[%emt 0:00:41] Dodges Qh3. White is more active.} Qxc8 {[%emt 0:01:39]} 32. Rxc8 {[%emt 0:00:01][%mdl 4096] Endgame KRR-KRB} Ra5 {[%emt 0:00:29]} 33. Rc7 {[%emt 0:00:09]} Ra3 {[%emt 0:01:15]} 34. h4 {[%emt 0:00:26]} (34. Rb7 $16) 34... Rxg3+ $11 {[%emt 0:00:08]} 35. Kf1 {[%emt 0:00:43]} (35. Kh2 $1 $11 {was the only way to keep the balance.} Rg4 36. Kh3) 35... Rh3 $17 {[%emt 0:00:26]} 36. Rc6 {[%emt 0:00:09]} a5 {[%emt 0:00:09]} (36... Rxh4 37. Rxa6 g5 38. Kg2 $17) 37. Ra6 {[%emt 0:00:26]} (37. Kg2 $142 Rxh4 38. Ra6) 37... Rxh4 $19 {[%emt 0:00:06]} 38. Rd3 {[%emt 0:00:24]} Rf4 {[%emt 0:00:06]} 39. f3 {[%emt 0:00:01][%cal Of1g2]} h4 {[%emt 0:00:12] Threatens to win with ...h3.} 40. Kg2 {[%emt 0:00:03]} g5 {[%emt 0:00:07]} 41. Rxa5 {[%emt 0:00:06]} g4 {[%emt 0:00:03]} ({Better is} 41... Rf6 $17 42. a4 Rc6) 42. fxg4 $11 {[%emt 0:00:15]} Rxg4+ {[%emt 0:00:01]} 43. Kh3 {[%emt 0:00:01]} Rf4 {[%emt 0:00:11]} 44. a4 {[%emt 0:00:17]} Ba1 {[%emt 0:00:05]} 45. Ra3 {[%emt 0:00:40][%mdl 1024] White has compensation.} Bd4 {[%emt 0:00:02]} 46. Rd5 {[%emt 0:00:03] a5 would be deadly.} Kf6 {[%emt 0:00:07] [#]} ({Black should play} 46... Rf1 $14) 47. a5 $1 $16 {[%emt 0:00:02] Black must now prevent a6.} Ke6 {[%emt 0:00:02]} 48. Rd8 {[%emt 0:00:13] Strongly threatening a6.} Rf1 $2 {[%emt 0:00:17][%mdl 8192]} (48... Bc5 $16 49. Ra2 Rf3+ 50. Kh2 (50. Kxh4 $2 Be7+ 51. Kg4 Rf4+ 52. Kg3 Bh4+ 53. Kh3 Bxd8 $19) 50... Ba7) 49. a6 {[%emt 0:00:09]} ({Weaker is} 49. Kxh4 Bc5 50. Rdd3 (50. Re8+ $2 Kd7 $19) 50... e4 $11) (49. Rxd4 $142 exd4 50. a6 Rh1+ 51. Kg2) 49... Rh1+ $18 {[%emt 0:00:00]} 50. Kg2 {[%emt 0:00:04]} Rg1+ {[%emt 0:00:00] [#]} 51. Kh2 $1 {[%emt 0:00:01][%cal Od8d4] Hoping for Rxd4!} Bc5 {[%emt 0:00:07]} 52. a7 {[%emt 0:00:24]} Bxa3 {[%emt 0:00:03]} 53. a8=Q {[%emt 0:00:08] White mates.} (53. a8=B $2 {perishes.} Rg3 54. Bd5+ Kf6 $19) 53... Rg3 {[%emt 0:00:05]} 54. Qc6+ {[%emt 0:00:16]} Kf5 {[%emt 0:00:05]} 55. Qd7+ {[%emt 0:00:04]} Kf6 {[%emt 0:00:05]} 56. Rh8 {[%emt 0:00:08]} Rg5 {[%emt 0:00:09]} 57. Rxh4 {[%emt 0:00:05]} Bb2 {[%emt 0:00:04]} 58. Rh7 {[%emt 0:00:03][%csl Gh7][%cal Rd7f7]} Rg7 {[%emt 0:00:06]} 59. Qd6+ {[%emt 0:00:06] A wild game.   Weighted Error Value: White=0.32/Black=0.29 (precise)} 1-0

[Event "Rapid Shavuot-A 2023"]
[Site "Ramat Gan"]
[Date "2023.05.25"]
[Round "6.6"]
[White "Uritsky, Yonathan"]
[Black "Levin, Guy"]
[Result "0-1"]
[ECO "B10"]
[WhiteElo "2118"]
[BlackElo "2424"]
[Annotator "TA"]
[PlyCount "96"]
[EventDate "2023.05.19"]
[EventType "swiss"]
[EventCountry "ISR"]
[SourceTitle "playchess.com"]
[Source "ChessBase"]
[SourceQuality "1"]
[TimeControl "900+5"]

{[%evp 9,96,-20,-22,-47,-48,-52,0,13,43,20,38,0,-12,-17,-7,-9,-26,-41,-32,-108,-106,-133,-134,-133,-106,-143,-126,-145,-64,-76,-117,-220,-161,-170,-173,-158,-157,-152,-154,-155,-148,-136,-137,-146,-146,-144,-147,-145,-139,-166,-154,-219,-204,-231,-237,-270,-254,-271,-269,-296,-264,-269,-230,-232,-241,-242,-235,-379,-370,-389,-279,-279,-304,-304,-188,-542,-528,-1328,-1333,-991,-997,-771,0,-738,-498,-2131,-1862,-12835,-12835]} 1. e4 {[%emt 0:00:01]} c6 {[%emt 0:00:06]} 2. Ne2 {[%emt 0:00:02]} d5 {[%emt 0:00:02]} 3. e5 {[%emt 0:00:00]} Bf5 {[%emt 0:00:06]} 4. Ng3 {[%emt 0:00:03]} Bg6 {[%emt 0:00:07]} 5. h4 {[%emt 0:00:01]} h5 {[%emt 0:00:07]} 6. e6 {[%emt 0:00:01] B10: Caro-Kann: 2 d3 and 2 c4.} fxe6 {[%emt 0:00:22]} 7. d4 {[%emt 0:00:02]} Nf6 {[%emt 0:00:05]} (7... Nd7 $15) 8. Bd3 $11 {[%emt 0:00:02] The position is equal.} Bxd3 {[%emt 0:00:57]} 9. Qxd3 {[%emt 0:00:01] [#] Hoping for 0-0.} Qd6 $146 {[%emt 0:00:01]} ({Predecessor:} 9... Na6 10. Nd2 Qa5 11. Qg6+ Kd7 12. O-O Rh6 13. Qd3 c5 14. Nb3 c4 15. Nxa5 cxd3 16. Bxh6 gxh6 {1-0 Hebbinghaus,H (2294)-Klein,R (2015) Niedersachsen-ch op 2009 (5)}) 10. Nd2 {[%emt 0:01:22]} (10. Qg6+ $14 Kd7 11. Nc3) 10... e5 $1 {[%emt 0:00:58]} 11. Qg6+ {[%emt 0:00:02]} Kd7 $1 {[%emt 0:00:08]} 12. Nf3 {[%emt 0:01:00]} exd4 {[%emt 0:00:05]} 13. O-O {[%emt 0:00:04] Threatens to win with Nf5.} Ng4 $1 {[%emt 0:00:32]} 14. Qf5+ {[%emt 0:00:41]} ({White should try} 14. Qd3 $1 $15) 14... e6 $17 {[%emt 0:00:20]} 15. Qf7+ {[%emt 0:00:54]} Qe7 {[%emt 0:00:20]} 16. Qg6 {[%emt 0:00:38]} Qf6 {[%emt 0:00:21]} 17. Qd3 {[%emt 0:00:02]} e5 $1 {[%emt 0:00:32]} 18. Bg5 {[%emt 0:00:15]} Qe6 {[%emt 0:00:01]} (18... Qf7 $17 {...Kc8 would be deadly.} 19. Rae1 Bd6) 19. Rfe1 {[%emt 0:00:03]} c5 {[%emt 0:00:33][%cal Bc6c5,Bc5c4][%mdl 32] Strongly threatening ...c4.} 20. Qb3 {[%emt 0:02:12]} (20. b4 $17) 20... Kc8 {[%emt 0:00:05]} 21. c3 {[%emt 0:00:44]} c4 {[%emt 0:01:00]} 22. Nxd4 {[%emt 0:01:19]} Qd7 {[%emt 0:01:37]} 23. Qb5 {[%emt 0:00:28] [#]} Qxb5 $1 {[%emt 0:00:18]} ({Reject} 23... Qf7 $6 24. f3 Na6 25. fxg4 $14 (25. Qa5 Qd7 $14)) 24. Nxb5 {[%emt 0:00:01]} a6 {[%emt 0:00:04]} 25. Na3 {[%emt 0:00:03]} Bc5 $36 {[%emt 0:00:15][%mdl 2048] Black is really pushing.} 26. Re2 {[%emt 0:00:01]} Rf8 {[%emt 0:00:12]} 27. Rf1 {[%emt 0:00:02]} g6 {[%emt 0:00:01]} 28. Nc2 {[%emt 0:00:23]} Nc6 {[%emt 0:00:03] Black is more active.} 29. Ne3 {[%emt 0:00:31]} Nxe3 {[%emt 0:00:12]} 30. fxe3 {[%emt 0:00:01]} (30. Bxe3 $17 {was necessary.} Bxe3 31. Rxe3) 30... Rxf1+ $19 {[%emt 0:00:17]} 31. Kxf1 {[%emt 0:00:17] [#]} Kd7 $1 {[%emt 0:00:01]} 32. Rf2 {[%emt 0:00:02]} Rf8 {[%emt 0:00:02] Prevents Rf7+} 33. Rxf8 Bxf8 {[%emt 0:00:02][%mdl 4096] Endgame KBN-KBN} 34. Ke2 {[%emt 0:00:06]} e4 {[%emt 0:00:10]} 35. Kd2 {[%emt 0:00:25]} Bd6 {[%emt 0:00:35]} 36. Ne2 {[%emt 0:00:05]} Ke6 {[%emt 0:00:01]} 37. Bf4 {[%emt 0:00:22]} Be7 {[%emt 0:00:08]} 38. Bg3 {[%emt 0:00:04]} (38. Bc7 {might work better.}) 38... Kf5 {[%emt 0:01:11]} 39. Nf4 {[%emt 0:00:09]} Bd6 {[%emt 0:00:12] White must now prevent ...Kg4.} 40. Nxh5 {[%emt 0:00:09]} gxh5 {[%emt 0:00:01]} 41. Bxd6 {[%emt 0:00:02] KB-KN} Kg4 {[%emt 0:00:02]} 42. g3 $2 {[%emt 0:00:09]} (42. Bc7 {was the crucial defense.}) 42... Kf3 {[%emt 0:00:12]} 43. b4 {[%emt 0:01:32]} b5 {[%emt 0:00:32]} 44. a3 {[%emt 0:00:15]} Nd8 {[%emt 0:00:02]} 45. Bf4 {[%emt 0:01:27]} Nc6 {[%emt 0:00:39] And now ...Ne7 would win.} 46. Bd6 {[%emt 0:00:19] Prevents Ne7} a5 {[%emt 0:00:07] ...a4 is the strong threat. Black is clearly winning.} 47. Bc7 {[%emt 0:00:40]} (47. g4 $142 hxg4 48. bxa5 Nxa5 49. Ke1) 47... axb4 {[%emt 0:00:15]} 48. axb4 {[%emt 0:00:09]} Ne7 {[%emt 0:00:01] Weighted Error Value: White=0.62/Black=0.21 (precise)} 0-1

[Event "Rapid Shavuot-A 2023"]
[Site "Ramat Gan"]
[Date "2023.05.25"]
[Round "6.7"]
[White "Mesropov, Konstantin"]
[Black "Ehrlich, Roy"]
[Result "0-1"]
[ECO "C01"]
[WhiteElo "2437"]
[BlackElo "2228"]
[Annotator "TA"]
[PlyCount "52"]
[EventDate "2023.05.19"]
[EventType "swiss"]
[EventCountry "ISR"]
[SourceTitle "playchess.com"]
[Source "ChessBase"]
[SourceQuality "1"]
[TimeControl "900+5"]

{[%evp 10,52,8,0,16,17,14,-6,-31,0,-21,-107,-50,-55,-71,-80,-78,-224,-234,-247,-239,-246,-226,-225,-218,-208,-185,-172,-111,-126,-127,-267,-242,-297,-313,-464,-91,-418,-426,-415,-405,-595,-581,-1619,-1563]} 1. d4 {[%emt 0:00:22]} e6 {[%emt 0:00:01]} 2. e4 {[%emt 0:00:03]} d5 {[%emt 0:00:01]} 3. exd5 {[%emt 0:00:05]} exd5 {[%emt 0:00:01]} 4. Bd3 {[%emt 0:00:03]} Bd6 {[%emt 0:00:01]} 5. Nc3 {[%emt 0:00:04]} c6 {[%emt 0:00:03]} 6. Qf3 {[%emt 0:00:02]} Ne7 {[%emt 0:01:25][%cal Bg8e7,Be7g6,Bg6h4,Bh4g2][%mdl 32] C01: French: Exchange Variation.} 7. Nge2 {[%emt 0:00:06]} Ng6 {[%emt 0:00:09] [#]} 8. h4 $146 {[%emt 0:01:27]} ({Predecessor:} 8. Qh5 Nd7 9. Bg5 Nf6 10. Qf3 O-O 11. O-O Re8 12. Rae1 Bg4 13. Bxf6 Qd7 14. Bf5 Bxf5 {0-1 Yang,S (1769)-Zhu,H (2163) CHN-chB Qiziwan 2023 (3)}) 8... Nxh4 {[%emt 0:00:39] The position is equal.} 9. Qh5 {[%emt 0:00:03][%csl LRh4,LRh7]} Be7 {[%emt 0:01:48]} (9... Nxg2+ $2 10. Kf1 $18) 10. Ng3 {[%emt 0:02:34]} (10. Bd2 $11) 10... Na6 {[%emt 0:03:04]} (10... Nxg2+ $17 11. Kf1 Nh4) 11. a3 {[%emt 0:00:05]} Nxg2+ {[%emt 0:00:39]} 12. Kf1 {[%emt 0:00:02]} Nh4 {[%emt 0:00:02] Threatens to win with ...Nc7.} 13. Bd2 {[%emt 0:01:00]} (13. Qe5 $17 Kf8 14. Nh5 (14. Bxa6 $2 bxa6 15. Qh5 Bf6 $19)) 13... Nc7 $19 {[%emt 0:00:28]} ({Avoid the trap} 13... Be6 $2 14. Na4) 14. Re1 {[%emt 0:00:08]} Be6 {[%emt 0:00:24]} 15. Bf4 {[%emt 0:01:37] [#] Strongly threatening Bxc7.} Kd7 {[%emt 0:04:08]} 16. Be5 {[%emt 0:04:00]} g6 {[%emt 0:00:32]} 17. Qe2 {[%emt 0:00:59]} Re8 {[%emt 0:00:06]} 18. f4 {[%emt 0:00:40]} Bf6 {[%emt 0:00:52]} (18... Kc8 $19 19. Nd1 h5) 19. Qf2 {[%emt 0:01:16]} Bg4 {[%emt 0:00:57]} 20. Nge4 {[%emt 0:01:10]} dxe4 {[%emt 0:00:11]} 21. Nxe4 {[%emt 0:00:01] [#]} Be7 {[%emt 0:00:30]} 22. Nc5+ {[%emt 0:00:23]} (22. Bxc7 $142 Kxc7 23. Ng5) 22... Bxc5 $2 (22... Kc8 $19 23. Bxc7 Kxc7 24. Rxe7+ Qxe7 25. Rxh4 h5) 23. dxc5 $4 {[%emt 0:00:01][%mdl 8192]} (23. Rxh4 $17 Be7 24. Rxg4) 23... Nf3 {[%emt 0:00:28]} 24. Rxh7 {[%emt 0:00:43]} Nxe1 {[%emt 0:00:03]} 25. Rxf7+ {[%emt 0:00:04]} (25. Qxe1 $142 Kc8 26. Rxf7 Bh3+ 27. Kg1) 25... Re7 {[%emt 0:00:00]} 26. Bxc7 {[%emt 0:00:08]} Kxc7 {[%emt 0:00:13] Excellently played by Ehrlich!   Weighted Error Value: White=0.91/Black=0.32} 0-1